bitfinex/quotes_ETHUSD_20250616
["timestamp","ask_amount","ask_price","bid_price","bid_amount"]
[1750056583266,10.38945815,2621.7,2621.2,0.1904]
[1750056583462,13.03263511,2621.7,2621.2,4.00537947]
[1750056583641,0.38945815,2621.7,2621.3,3.81482216]
[1750056584539,0.19905815,2621.7,2621.5,3.81457787]
[1750056584742,0.38002781,2621.8,2621.7,4.63271895]
[1750056584943,0.005,2621.9,2621.7,4.63271895]
[1750056585127,0.005,2621.9,2621.5,0.8232]
[1750056585327,8.13656277,2621.8,2621.2,0.8232]
[1750056585629,8.13656277,2621.8,2621.3,0.1904]
[1750056585630,8.32696277,2621.8,2621.3,0.1904]
[1750056585830,10.0,2621.6,2621.3,0.1904]
[1750056586041,12.21460622,2621.7,2621.3,0.1904]
[1750056586242,16.02898388,2621.7,2621.3,0.1904]
[1750056586462,3.81446738,2621.6,2621.3,0.1904]
[1750056586762,10.8325,2621.4,2620.8,4.60311996]
[1750056587076,10.8325,2621.4,2621.0,0.1904]
[1750056589070,10.8325,2621.4,2621.1,3.81512864]
[1750056589071,0.8325,2621.4,2621.1,3.81512864]
[1750056589395,10.0,2621.4,2621.0,4.00565298]
[1750056590187,10.0,2621.4,2621.0,0.1904]
[1750056590387,10.0,2621.4,2621.0,4.00564241]
[1750056590555,0.1904,2621.5,2621.1,3.81512062]
[1750056590891,0.1904,2621.5,2621.0,4.00568072]
[1750056591251,0.1904,2621.5,2621.1,3.81517667]
[1750056592582,0.1904,2621.5,2621.0,4.00568129]
[1750056592939,0.1904,2621.5,2621.1,3.81519006]
[1750056593635,0.1904,2621.5,2621.2,3.81495341]
[1750056593835,0.1904,2621.5,2621.1,3.81517803]
[1750056594035,0.1904,2621.5,2621.0,4.00566896]
[1750056594693,10.0,2621.4,2621.0,0.1904]
[1750056594840,2.30035738,2621.5,2621.0,0.1904]
[1750056595033,0.1904,2621.5,2621.1,3.81519209]
[1750056596669,10.0,2621.7,2621.3,4.00515776]
[1750056597594,9.98892286,2621.7,2621.3,4.00522845]
[1750056598254,9.98892286,2621.7,2621.3,4.00022845]
[1750056600354,9.98892286,2621.7,2621.4,3.81474817]
[1750056600561,0.19899118,2622.2,2621.5,0.40001482]
[1750056600763,0.7832,2622.3,2621.9,3.81388525]
[1750056600965,0.7832,2622.3,2621.9,4.00428525]
[1750056601301,0.7832,2622.3,2622.0,3.81385612]
[1750056601470,0.7832,2622.3,2621.9,4.00433774]
[1750056601650,0.1904,2622.4,2621.9,1.04985129]
[1750056601851,0.1904,2622.4,2621.9,4.00433904]
[1750056602173,0.1904,2622.4,2621.9,0.1904]
[1750056602376,10.1904,2622.4,2621.9,0.1904]
[1750056602962,10.7575,2622.0,2621.4,3.81466059]
[1750056603175,4.99966976,2621.8,2621.5,0.1904]
[1750056603562,4.99966976,2621.8,2621.5,4.00498811]
[1750056604087,4.99966976,2621.8,2621.5,0.1904]
[1750056604394,4.99966976,2621.8,2621.5,4.00498525]
[1750056604552,4.99966976,2621.8,2621.5,0.1904]
[1750056604952,14.76181811,2622.0,2621.5,0.1904]
[1750056605148,14.17294313,2622.0,2621.5,4.00500264]
[1750056605386,14.17294313,2622.0,2621.5,0.1904]
[1750056605688,10.0,2621.8,2621.5,0.1904]
[1750056606078,10.0,2621.8,2621.0,0.8244]
[1750056606277,10.0,2621.8,2621.3,0.1904]
[1750056606278,20.29259783,2621.8,2621.3,0.1904]
[1750056606473,23.83999968,2621.8,2621.3,0.1904]
[1750056606675,0.8019,2621.7,2621.3,0.1904]
[1750056607555,10.0,2621.6,2621.3,0.1904]
[1750056607756,10.8019,2621.7,2621.3,0.1904]
[1750056607991,10.8019,2621.7,2621.3,4.00529557]
[1750056608168,10.8019,2621.7,2621.3,0.1904]
[1750056608371,10.8019,2621.7,2621.3,4.00529298]
[1750056609660,10.8019,2621.7,2621.3,0.1904]
[1750056610295,10.8019,2621.7,2621.3,4.00529476]
[1750056610597,10.0,2621.7,2621.3,0.1904]
[1750056610958,0.1904,2621.8,2621.5,3.81450678]
[1750056611280,0.1904,2621.8,2621.5,3.81450896]
[1750056611676,10.0,2621.6,2621.3,0.1904]
[1750056611887,0.8183,2621.7,2621.3,0.1904]
[1750056613900,4.6326231,2621.7,2621.3,0.1904]
[1750056614108,3.81447971,2621.6,2621.3,0.1904]
[1750056614305,14.63267773,2621.7,2621.3,0.1904]
[1750056614605,17.96510912,2621.7,2621.3,0.1904]
[1750056614911,14.15073139,2621.7,2621.3,0.1904]
[1750056615072,14.15073139,2621.7,2621.1,0.753]
[1750056615272,0.1904,2621.6,2621.2,3.81497592]
[1750056616693,0.1904,2621.6,2621.1,0.9434]
[1750056616898,0.1904,2621.6,2621.1,4.00558505]
[1750056617111,0.1904,2621.6,2621.2,3.81503213]
[1750056617810,0.1904,2621.6,2621.1,4.00552428]
[1750056618240,0.1904,2621.6,2621.2,3.81502571]
[1750056618430,0.1904,2621.6,2621.1,0.1904]
[1750056618795,0.1904,2621.6,2621.4,3.81468744]
[1750056619097,0.1904,2621.6,2621.3,3.81483838]
[1750056619728,0.1904,2621.6,2621.2,3.81504502]
[1750056619877,0.1904,2621.6,2621.1,4.00550632]
[1750056620321,0.1904,2621.6,2621.2,3.81497357]
[1750056620489,0.1904,2621.6,2621.3,3.81487909]
[1750056621324,0.1904,2621.6,2621.2,3.81500037]
[1750056621521,10.0,2621.7,2621.5,3.81460995]
[1750056621679,0.1904,2621.8,2621.5,3.81460995]
[1750056621874,0.19887704,2621.8,2621.5,3.81455683]
[1750056622098,1.8394,2622.1,2621.7,4.00471895]
[1750056622311,10.0,2622.0,2621.7,4.00471895]
[1750056623502,10.0,2622.0,2621.8,3.81415776]
[1750056623690,0.1904,2622.1,2621.7,4.00461526]
[1750056623885,0.1904,2622.1,2621.8,3.81404319]
[1750056624309,0.19884826,2622.3,2622.0,3.81377477]
[1750056624484,0.19884826,2622.3,2622.0,4.00417477]
[1750056624885,11.99691555,2622.2,2621.6,3.81432882]
[1750056625125,11.99691555,2622.2,2621.6,0.1904]
[1750056625126,11.40997638,2622.1,2621.6,0.1904]
[1750056625436,11.40997638,2622.1,2621.5,4.5907471]
[1750056625437,14.63295796,2621.8,2621.0,3.81522858]
[1750056625630,6.4774,2621.7,2621.2,0.1904]
[1750056625840,6.4774,2621.7,2621.2,4.00544092]
[1750056626739,6.4774,2621.7,2621.3,3.81489905]
[1750056626891,11.47847924,2621.7,2621.3,3.81489905]
[1750056628577,11.47847924,2621.7,2621.2,4.00541534]
[1750056628873,6.4774,2621.7,2621.2,4.00543408]
[1750056630119,9.32714997,2621.7,2621.2,4.00543408]
[1750056630319,10.0,2621.6,2621.2,0.1904]
[1750056630518,10.0,2621.4,2620.9,3.81538464]
[1750056630753,16.4724,2621.4,2620.9,4.00578464]
[1750056630931,16.4724,2621.4,2620.9,0.1904]
[1750056631241,23.12977093,2621.4,2620.9,0.1904]
[1750056631441,0.7829,2621.3,2620.9,0.1904]
[1750056631854,0.7829,2621.3,2620.9,4.00587677]
[1750056632440,1.16428198,2621.3,2620.9,4.00587677]
[1750056633159,1.16428198,2621.3,2621.0,3.81523579]
[1750056633483,6.4714,2621.4,2621.0,3.81526111]
[1750056633654,0.1904,2621.4,2621.0,3.81526111]
[1750056633861,0.1904,2621.4,2621.1,3.81516066]
[1750056635280,0.1904,2621.4,2621.2,3.81504583]
[1750056635480,0.1904,2621.4,2621.1,3.81512908]
[1750056636494,0.57724394,2621.4,2621.1,3.81512929]
[1750056636694,0.7567,2622.1,2621.7,3.81431895]
[1750056636990,0.9471,2622.1,2621.8,3.81413598]
[1750056637155,10.9471,2622.1,2621.8,3.81413598]
[1750056637685,0.9471,2622.1,2621.8,3.81413598]
[1750056637990,10.9471,2622.1,2621.8,3.81413598]
[1750056638203,0.19884826,2622.3,2622.2,3.81359164]
[1750056638545,0.19884826,2622.3,2621.9,0.7698]
[1750056638742,0.7637,2622.2,2621.6,0.9855]
[1750056639071,0.7637,2622.2,2621.7,3.81417981]
[1750056639275,0.7637,2622.2,2621.5,3.81456257]
[1750056639476,10.0,2622.1,2621.6,3.81437293]
[1750056639776,10.0,2622.1,2621.5,3.81453214]
[1750056639941,10.0,2622.1,2621.6,3.81446228]
[1750056640143,10.0,2622.1,2621.7,3.814308]
[1750056640372,12.21632496,2622.1,2621.5,3.81451418]
[1750056640575,12.21632496,2622.1,2621.6,3.81445716]
[1750056641477,6.308,2622.1,2621.4,0.7951]
[1750056641644,6.308,2622.1,2621.7,3.81421831]
[1750056642254,6.308,2622.1,2621.4,0.7951]
[1750056642255,27.50905855,2622.1,2621.4,4.60977189]
[1750056642456,0.8033,2621.9,2621.3,7.73763151]
[1750056642655,0.8033,2621.9,2621.3,3.92281672]
[1750056642854,0.8033,2621.9,2621.6,3.81437576]
[1750056642855,1.00232969,2621.9,2621.6,3.81437576]
[1750056643467,1.00232969,2621.9,2621.4,0.46984167]
[1750056643783,1.00232969,2621.9,2621.5,3.814598]
[1750056644183,1.00232969,2621.9,2621.3,3.92281672]
[1750056644547,4.81644375,2621.9,2621.3,3.92281672]
[1750056644748,9.49993383,2621.8,2621.3,3.92281672]
[1750056644948,10.0,2621.7,2621.3,3.92281672]
[1750056645449,0.7615,2621.6,2621.3,3.92281672]
[1750056646283,10.7615,2621.6,2621.3,3.92281672]
[1750056648184,0.1904,2621.4,2621.3,3.92281672]
[1750056650902,0.1904,2621.4,2621.3,7.73771772]
[1750056651111,0.1904,2621.4,2621.3,3.92281672]
[1750056651490,0.1904,2621.4,2621.3,7.73771772]
[1750056651713,0.1904,2621.6,2621.3,8.89298814]
[1750056651914,0.1904,2621.6,2621.4,3.81467901]
[1750056652116,0.1904,2621.6,2621.3,7.73765835]
[1750056652426,0.1904,2621.6,2621.3,3.92281672]
[1750056653284,0.1904,2621.6,2621.3,7.73770884]
[1750056654414,0.1904,2621.6,2621.4,3.81470293]
[1750056654849,0.1904,2621.6,2621.3,7.73763879]
[1750056655757,0.1904,2621.6,2621.4,3.81473114]
[1750056657563,0.1904,2621.6,2621.5,3.81460995]
[1750056657856,10.0,2621.8,2621.5,3.81460995]
[1750056660162,1.16922969,2621.9,2621.5,3.81460995]
[1750056660368,10.0,2621.8,2621.5,3.81460995]
[1750056660547,1.16922969,2621.9,2621.6,3.81444292]
[1750056660753,0.38942969,2621.9,2621.6,3.81444292]
[1750056660968,10.0,2621.8,2621.4,0.1904]
[1750056661169,5.00057294,2621.7,2621.4,0.1904]
[1750056661366,0.8229,2621.6,2621.3,7.73763721]
[1750056663147,0.8229,2621.6,2621.4,3.81467518]
[1750056663465,0.1904,2621.7,2621.4,3.81467518]
[1750056665781,5.19097294,2621.7,2621.4,3.81467518]
[1750056667775,0.1904,2621.7,2621.3,7.73763846]
[1750056667983,0.19902969,2621.9,2621.6,3.81446444]
[1750056668293,0.38942969,2621.9,2621.7,3.81423978]
[1750056668937,0.38942969,2621.9,2621.6,3.81438561]
[1750056669954,0.38942969,2621.9,2621.7,3.81429349]
[1750056670271,0.38942969,2621.9,2621.6,3.81441347]
[1750056671577,0.38942969,2621.9,2621.4,5.60841061]
[1750056671980,0.38942969,2621.9,2621.5,3.81460995]
[1750056672759,10.0,2621.7,2621.4,4.81557719]
[1750056672957,10.0,2621.7,2621.5,3.81459245]
[1750056673508,0.38942969,2621.9,2621.4,5.88907934]
[1750056673797,10.38942969,2621.9,2621.5,3.81446877]
[1750056673995,10.0,2621.7,2621.4,5.88901326]
[1750056674160,10.0,2621.7,2621.4,0.1904]
[1750056674360,5.00057294,2621.6,2621.3,7.7376955]
[1750056674566,5.00057294,2621.4,2621.3,3.92281672]
[1750056674766,5.77847294,2621.6,2621.3,3.92281672]
[1750056674990,5.00057294,2621.4,2621.3,3.92281672]
[1750056676524,5.19097294,2621.4,2621.3,3.92281672]
[1750056677821,10.0,2621.7,2621.4,3.81475547]
[1750056677992,10.1904,2621.7,2621.4,3.81475547]
[1750056678187,10.38943511,2621.7,2621.3,7.73765353]
[1750056678392,10.38943511,2621.7,2621.4,3.81475144]
[1750056679579,10.38943511,2621.7,2621.6,3.81446444]
[1750056679580,0.19903511,2621.7,2621.6,3.81446444]
[1750056679807,6.4724,2622.1,2621.8,3.81405358]
[1750056679978,0.1904,2622.1,2621.8,3.81405358]
[1750056680311,0.1904,2622.1,2621.8,4.29123882]
[1750056680682,0.1904,2622.1,2621.9,3.81399054]
[1750056681701,0.1904,2622.1,2622.0,3.81388253]
[1750056681917,0.38309362,2622.4,2622.1,4.56463125]
[1750056682239,0.812,2622.2,2622.0,0.1904]
[1750056682377,0.812,2622.2,2621.7,4.00470932]
[1750056682378,1.0024,2622.2,2621.7,4.00470932]
[1750056682578,0.19898556,2622.3,2622.2,3.81359164]
[1750056685117,0.38691839,2622.4,2622.3,3.81344621]
[1750056685286,0.1904,2622.6,2622.3,3.81344621]
[1750056685610,10.1904,2622.6,2622.3,3.81344621]
[1750056685915,0.1904,2622.6,2622.4,3.81325708]
[1750056686305,10.0,2622.7,2622.4,3.81325708]
[1750056687130,10.0,2622.7,2622.3,4.00377641]
[1750056687684,0.38935846,2622.8,2622.4,0.7975]
[1750056687890,0.19895846,2622.8,2622.6,0.1904]
[1750056688492,0.19895846,2622.8,2622.6,4.00339547]
[1750056688900,10.7653,2622.7,2622.6,0.1904]
[1750056689098,10.7653,2622.7,2622.1,7.68858087]
[1750056689099,10.7653,2622.7,2622.1,6.89878087]
[1750056689302,5.00057294,2622.2,2622.1,6.89878087]
[1750056689802,10.0,2622.5,2622.1,6.89878087]
[1750056690126,10.37783605,2622.7,2622.3,3.81333253]
[1750056690314,10.37783605,2622.7,2622.3,3.81344621]
[1750056690510,10.37783605,2622.7,2622.4,3.81322563]
[1750056690717,0.19895846,2622.8,2622.6,3.81300999]
[1750056690913,0.02,2622.9,2622.7,3.81277299]
[1750056691115,0.02,2622.9,2622.6,3.8129507]
[1750056691630,0.02,2622.9,2622.6,3.81295082]
[1750056692189,10.02,2622.9,2622.6,3.81295082]
[1750056692626,0.39756881,2622.9,2622.7,3.81277923]
[1750056692795,0.39756881,2622.9,2622.8,3.81271923]
[1750056692989,0.39756881,2622.9,2622.7,0.76259346]
[1750056692990,0.39756881,2622.9,2622.7,4.57541638]
[1750056693327,5.00057294,2622.8,2622.5,3.81306307]
[1750056693513,5.00057294,2622.6,2622.4,3.81328537]
[1750056693708,5.00057294,2622.8,2622.4,3.81328537]
[1750056694390,5.00057294,2622.8,2622.3,4.59728793]
[1750056694601,5.00057294,2622.8,2622.4,3.81329162]
[1750056694805,0.39756881,2622.9,2622.4,3.81329162]
[1750056695122,0.39756881,2622.9,2622.3,0.82203071]
[1750056695428,0.39756881,2622.9,2622.3,4.63543317]
[1750056695624,0.39756881,2622.9,2622.3,4.59730246]
[1750056695829,8.20423136,2622.7,2622.1,7.65638087]
[1750056696062,12.01718876,2622.7,2622.1,7.65638087]
[1750056696629,8.20423136,2622.7,2622.1,11.47010207]
[1750056697016,7.1184,2622.7,2622.1,9.18478368]
[1750056697207,10.0,2622.6,2622.1,12.9984518]
[1750056697603,10.0,2622.6,2622.2,3.81357661]
[1750056699235,7.1184,2622.7,2622.2,3.81357661]
[1750056699236,0.1904,2622.7,2622.5,3.81305085]
[1750056699436,6.292,2622.8,2622.5,0.1904]
[1750056699736,0.58796881,2622.9,2622.5,0.1904]
[1750056700039,13.8127392,2622.8,2622.2,3.81351842]
[1750056700346,0.1904,2622.7,2622.3,0.1904]
[1750056700497,10.7881,2622.6,2622.3,0.1904]
[1750056701299,0.1904,2622.7,2622.3,4.00381542]
[1750056701660,1.17846881,2622.9,2622.5,0.1904]
[1750056702458,1.17846881,2622.9,2622.5,4.00355084]
[1750056702803,1.17846881,2622.9,2622.5,0.1904]
[1750056703544,0.1904,2622.8,2622.3,0.1904]
[1750056703764,0.7968,2622.5,2622.1,6.89878087]
[1750056704049,0.7968,2622.5,2622.1,7.08918087]
[1750056704943,0.7968,2622.5,2622.1,10.90289952]
[1750056705257,0.1904,2622.6,2622.2,3.81357081]
[1750056705825,0.1904,2622.6,2622.1,10.90286663]
[1750056706131,0.1904,2622.6,2622.1,13.00363659]
[1750056706336,0.1904,2622.6,2622.1,9.18995083]
[1750056706550,0.1904,2622.6,2622.1,13.00368052]
[1750056706724,0.1904,2622.6,2622.1,10.90291056]
[1750056708122,0.1904,2622.6,2622.2,3.81358728]
[1750056708322,0.1904,2622.6,2622.1,7.08918087]
[1750056708529,0.1904,2622.6,2622.1,10.90283979]
[1750056708754,0.1904,2622.6,2622.2,3.81358859]
[1750056709342,0.1904,2622.6,2622.3,3.81340458]
[1750056709528,0.1904,2622.6,2622.3,3.81336797]
[1750056709740,0.1904,2622.8,2622.6,3.81289955]
[1750056710064,0.39756881,2622.9,2622.5,4.00344055]
[1750056710220,0.39756881,2622.9,2622.5,0.1904]
[1750056710418,0.39756881,2622.9,2622.5,4.00352721]
[1750056711164,10.0,2622.8,2622.3,6.291]
[1750056711362,10.0,2622.8,2622.4,0.1904]
[1750056711523,10.19894274,2622.8,2622.4,0.1904]
[1750056711717,12.09462703,2622.8,2622.4,4.00368586]
[1750056711917,12.09462703,2622.8,2622.4,0.1904]
[1750056712352,12.09462703,2622.8,2622.4,4.00367338]
[1750056715650,12.09462703,2622.8,2622.5,3.81312694]
[1750056716248,12.09462703,2622.8,2622.4,0.1904]
[1750056716582,0.8052,2622.6,2622.3,3.81335724]
[1750056718747,0.8052,2622.6,2622.2,4.00392154]
[1750056719401,0.8052,2622.6,2622.2,0.1904]
[1750056719900,7.37983136,2622.5,2622.2,0.1904]
[1750056720103,0.1904,2622.2,2622.1,6.89878087]
[1750056722812,15.96364996,2622.2,2622.1,6.89878087]
[1750056723001,16.51364996,2622.2,2622.1,6.89878087]
[1750056723196,12.70005832,2622.2,2622.1,6.89878087]
[1750056723403,0.9542,2622.2,2622.1,6.89878087]
[1750056723895,0.1904,2622.2,2622.1,6.89878087]
[1750056724302,0.7888,2622.4,2622.1,10.71251795]
[1750056724503,0.9792,2622.4,2622.1,10.71251795]
[1750056724812,0.9792,2622.4,2622.1,6.89878087]
[1750056724999,0.19894274,2622.8,2622.3,3.81344621]
[1750056725000,0.99064274,2622.8,2622.3,3.81344621]
[1750056725402,0.99064274,2622.8,2622.3,3.81336712]
[1750056725598,0.99064274,2622.8,2622.3,3.81332321]
[1750056725805,0.99064274,2622.8,2622.4,3.81329191]
[1750056726885,0.99064274,2622.8,2622.3,3.81337686]
[1750056727107,10.0,2622.7,2622.2,3.81354569]
[1750056728530,10.0,2622.7,2622.3,3.81344147]
[1750056729924,10.99064274,2622.8,2622.3,3.81344147]
[1750056730109,10.99064274,2622.8,2622.4,3.81327213]
[1750056731126,10.99064274,2622.8,2622.3,3.8133707]
[1750056731929,10.99064274,2622.8,2622.2,0.03813156]
[1750056732227,10.99064274,2622.8,2622.3,3.81344621]
[1750056733222,10.99064274,2622.8,2622.3,3.81332898]
[1750056733420,10.99064274,2622.8,2622.4,3.81320478]
[1750056734223,10.99064274,2622.8,2622.3,3.81336763]
[1750056734806,4.99751482,2622.7,2622.3,3.81336763]
[1750056735001,12.60140435,2622.8,2622.3,4.00376763]
[1750056735317,16.17855756,2622.8,2622.3,4.00377121]
[1750056735705,16.17855756,2622.8,2622.4,3.81329625]
[1750056736238,16.17855756,2622.8,2622.4,3.81323324]
[1750056736390,16.17855756,2622.8,2622.5,3.81314494]
[1750056736590,16.17855756,2622.8,2622.4,3.81324057]
[1750056736790,16.17855756,2622.8,2622.3,4.00384209]
[1750056737298,10.38934274,2622.8,2622.3,1.3210601]
[1750056737514,10.19894274,2622.8,2622.7,3.8128646]
[1750056737724,0.19894274,2622.8,2622.6,3.81293841]
[1750056738406,0.19894274,2622.8,2622.5,4.0034859]
[1750056738833,0.19894274,2622.8,2622.7,3.8128646]
[1750056739512,0.19894274,2622.8,2622.6,3.81294559]
[1750056740110,0.19894274,2622.8,2622.7,3.8128646]
[1750056741953,0.39756881,2622.9,2622.8,3.81271923]
[1750056741954,0.02,2622.9,2622.8,3.81271923]
[1750056742154,0.02,2622.9,2622.8,4.57531923]
[1750056744248,0.02,2622.9,2622.8,10.1318415]
[1750056744434,0.02,2622.9,2622.8,10.09371923]
[1750056744816,0.02,2622.9,2622.8,11.50341578]
[1750056745676,0.02,2622.9,2622.8,6.04241578]
[1750056745978,0.02,2622.9,2622.8,10.09271923]
[1750056749469,0.02,2622.9,2622.8,10.91621923]
[1750056750440,0.02,2622.9,2622.8,6.28]
[1750056750944,0.02,2622.9,2622.8,10.09271923]
[1750056751538,0.02,2622.9,2622.8,6.279]
[1750056751981,0.02,2622.9,2622.7,0.1904]
[1750056752278,0.8105,2622.8,2622.4,0.1904]
[1750056752482,12.2938451,2622.8,2622.4,0.1904]
[1750056753586,23.48115901,2622.8,2622.4,0.1904]
[1750056756746,19.66835838,2622.8,2622.4,0.1904]
[1750056756983,0.7908,2622.5,2622.1,6.89878087]
[1750056757182,0.7908,2622.5,2622.2,0.1904]
[1750056757387,1.27022751,2622.5,2622.2,0.1904]
[1750056757684,15.08339406,2622.5,2622.2,0.1904]
[1750056757888,0.1904,2622.4,2622.1,6.89878087]
[1750056758966,4.00380197,2622.4,2622.1,6.89878087]
[1750056759187,0.1904,2622.4,2622.1,6.89878087]
[1750056762704,0.38938331,2622.4,2622.1,6.89878087]
[1750056763371,1.93665179,2622.4,2622.1,6.89878087]
[1750056764902,5.38782966,2622.4,2622.1,6.89878087]
[1750056765470,0.38938331,2622.4,2622.1,6.89878087]
[1750056765664,0.38938331,2622.4,2622.1,10.71239938]
[1750056765904,0.38938331,2622.4,2622.1,6.89878087]
[1750056766308,0.38938331,2622.4,2622.1,10.71251614]
[1750056766605,0.19898331,2622.4,2622.1,6.89878087]
[1750056766785,0.19898331,2622.4,2622.2,4.00391372]
[1750056767166,0.1904,2622.6,2622.4,3.81319786]
[1750056767606,0.1904,2622.6,2622.3,3.81339379]
[1750056767921,5.18884635,2622.6,2622.2,10.28493745]
[1750056768210,5.76764635,2622.4,2622.2,0.1904]
[1750056768574,6.36345099,2622.4,2622.2,0.1904]
[1750056768828,6.36345099,2622.4,2622.1,6.89878087]
[1750056770136,0.59580464,2622.4,2622.1,6.89878087]
[1750056770306,10.1904,2622.5,2622.1,10.71240345]
[1750056770487,10.1904,2622.5,2622.1,6.89878087]
[1750056771525,4.99844635,2622.4,2622.1,6.89878087]
[1750056772323,15.18884635,2622.5,2622.1,6.89878087]
[1750056772518,16.66721401,2622.5,2622.1,6.89878087]
[1750056774324,16.66721401,2622.5,2622.1,10.71251216]
[1750056774820,15.18884635,2622.5,2622.1,10.71251216]
[1750056776611,15.18884635,2622.5,2622.1,6.89878087]
[1750056777811,4.99844635,2622.3,2622.1,6.89878087]
[1750056778013,4.99844635,2622.2,2622.1,6.89878087]
[1750056778338,9.58763799,2622.2,2622.1,6.89878087]
[1750056778501,20.92774223,2622.2,2622.1,6.89878087]
[1750056779420,21.47774223,2622.2,2622.1,6.89878087]
[1750056780237,3.81446444,2621.6,2621.5,0.1904]
[1750056780534,3.81446444,2621.6,2620.6,10.09592001]
[1750056780535,3.8148358,2621.4,2620.6,10.09592001]
[1750056780733,3.8148358,2621.4,2620.8,0.1904]
[1750056780734,4.99844635,2621.1,2620.8,0.1904]
[1750056781503,5.82474635,2621.1,2620.8,0.1904]
[1750056781907,4.99844635,2620.9,2620.8,0.1904]
[1750056782303,4.99844635,2620.9,2620.3,0.1904]
[1750056782304,10.0,2620.7,2620.3,0.1904]
[1750056782499,10.0,2620.4,2620.1,0.816]
[1750056783053,10.0,2620.4,2620.1,4.63263337]
[1750056783745,1.0167,2620.6,2620.2,3.81649157]
[1750056784040,10.1904,2620.6,2620.2,3.81637136]
[1750056784209,4.99844635,2620.5,2620.1,0.816]
[1750056784414,8.8145808,2620.5,2620.1,0.02]
[1750056784620,10.0,2620.4,2620.1,0.02]
[1750056785257,10.1904,2620.4,2620.1,0.02]
[1750056786808,0.7595,2620.8,2620.2,3.81648867]
[1750056787015,0.1904,2620.7,2620.3,4.00668509]
[1750056787240,0.1904,2620.7,2620.4,3.81620665]
[1750056787450,0.1904,2620.7,2620.3,4.00668468]
[1750056787750,0.1904,2620.7,2620.3,0.1904]
[1750056787948,1.66696114,2620.7,2620.3,0.1904]
[1750056788446,0.1904,2620.7,2620.4,0.7597]
[1750056788754,0.19911913,2620.8,2620.6,3.81592001]
[1750056790065,0.19911913,2620.8,2620.7,3.81577441]
[1750056790630,0.19911913,2620.8,2620.6,3.81584561]
[1750056790842,0.19911913,2620.8,2620.7,3.81577441]
[1750056791461,0.19911913,2620.8,2620.6,3.81585512]
[1750056791636,0.19911913,2620.8,2620.5,4.00639611]
[1750056792038,0.19911913,2620.8,2620.5,0.1904]
[1750056792252,10.19911913,2620.8,2620.2,7.0417]
[1750056792437,10.38951913,2620.8,2620.4,0.1904]
[1750056792860,11.88794764,2620.8,2620.4,0.1904]
[1750056793266,14.82003877,2620.7,2620.2,0.1904]
[1750056793883,11.0042,2620.7,2620.2,4.00680913]
[1750056794228,1.0042,2620.7,2620.2,0.1904]
[1750056794434,1.0042,2620.7,2620.2,4.00681902]
[1750056794838,1.0042,2620.7,2620.2,0.1904]
[1750056795040,0.19911913,2620.8,2620.3,0.80136225]
[1750056795250,0.19911913,2620.8,2620.7,3.81577441]
[1750056796553,0.19911913,2620.8,2620.6,3.81585396]
[1750056796783,0.19911913,2620.8,2620.5,0.1904]
[1750056796988,0.19911913,2620.8,2620.4,3.8161357]
[1750056797136,0.38951913,2620.8,2620.4,4.65570068]
[1750056797537,0.38951913,2620.8,2620.4,0.83956498]
[1750056798298,0.38951913,2620.8,2620.4,4.65577116]
[1750056798492,0.38951913,2620.8,2620.5,0.03815658]
[1750056800078,3.81594036,2620.6,2620.1,0.02]
[1750056800399,3.81621744,2620.4,2620.1,0.02]
[1750056800675,4.00690255,2620.2,2620.1,0.02]
[1750056801401,14.00690255,2620.2,2620.1,0.02]
[1750056802492,10.1904,2620.2,2620.1,0.02]
[1750056809496,14.00690255,2620.2,2620.1,0.02]
[1750056809651,11.97271628,2620.2,2620.1,0.02]
[1750056810751,10.1904,2620.2,2620.1,0.02]
[1750056811888,0.1904,2620.5,2620.1,0.8341]
[1750056812271,0.1904,2620.5,2620.3,3.81633753]
[1750056812775,0.1904,2620.5,2620.2,3.85458367]
[1750056812948,0.1904,2620.5,2620.3,3.81632117]
[1750056813147,0.1904,2620.5,2620.3,0.85050048]
[1750056813373,0.1904,2620.5,2620.4,3.81621126]
[1750056813552,0.1904,2620.5,2620.3,4.66678794]
[1750056813749,0.1904,2620.5,2620.3,4.66679759]
[1750056813988,0.1904,2620.5,2620.1,7.1181]
[1750056814397,0.1904,2620.5,2620.1,0.8341]
[1750056814594,5.00392491,2620.4,2620.1,0.02]
[1750056815089,10.1904,2620.2,2620.1,0.02]
[1750056816962,0.1904,2620.2,2620.1,0.02]
[1750056818190,0.8188,2620.8,2620.1,4.63554821]
[1750056818422,0.1904,2620.5,2620.2,3.85456347]
[1750056818924,0.8188,2620.8,2620.3,3.8163569]
[1750056819101,0.1904,2620.7,2620.5,3.81599662]
[1750056820014,0.1904,2620.7,2620.2,0.1904]
[1750056820428,0.97255973,2620.7,2620.2,0.1904]
[1750056820614,0.1904,2620.5,2620.2,3.85465274]
[1750056821447,0.1904,2620.5,2620.2,0.0381611]
[1750056821629,3.81549068,2620.9,2620.3,3.81628231]
[1750056821830,0.1904,2620.7,2620.4,0.03815818]
[1750056822031,0.1904,2620.7,2620.4,3.85436369]
[1750056822903,0.1904,2620.7,2620.5,3.81606083]
[1750056823205,0.1904,2620.7,2620.5,1.55375585]
[1750056823403,0.38948616,2621.0,2620.6,0.03815571]
[1750056824005,0.38948616,2621.0,2620.6,3.81583482]
[1750056824205,0.38948616,2621.0,2620.6,3.85398864]
[1750056824631,0.19908616,2621.0,2620.7,3.81574596]
[1750056824819,0.1904,2621.1,2620.8,0.03815112]
[1750056825255,3.8151339,2621.2,2620.6,0.8305511]
[1750056825419,0.1904,2620.9,2620.6,4.64643433]
[1750056826480,0.1904,2620.9,2620.6,0.8305511]
[1750056826610,0.1904,2620.9,2620.6,0.0381511]
[1750056827447,0.1904,2620.9,2620.6,3.85406401]
[1750056827650,0.1904,2620.9,2620.7,3.81575226]
[1750056827871,0.1904,2620.9,2620.6,3.85406401]
[1750056828570,0.1904,2620.9,2620.6,3.85402808]
[1750056829176,0.1904,2620.9,2620.6,0.0381511]
[1750056829477,0.1904,2620.9,2620.6,3.85405179]
[1750056830246,0.1904,2620.9,2620.6,6.3201511]
[1750056830652,0.1904,2620.9,2620.6,6.32015531]
[1750056830867,0.1904,2620.9,2620.6,6.282]
[1750056831266,0.1904,2620.9,2620.4,4.78365174]
[1750056831490,0.1904,2620.9,2620.6,6.282]
[1750056831678,5.48562389,2620.9,2620.6,6.282]